fUSD/lending_fUSD_20251120
["ID","MTS","AMOUNT","RATE_DAILY","PERIOD"]
[394472087,1763615444636,-500.0,0.00017732,2]
[394472088,1763615444646,-663.0,0.00017732,2]
[394472089,1763615444655,-500.0,0.00017732,2]
[394472090,1763615444664,-500.0,0.00017732,2]
[394472091,1763615444674,-484.0,0.00017732,2]
[394472092,1763615444683,-512.0,0.00017732,2]
[394472093,1763615444692,-469.0,0.00017732,2]
[394472094,1763615444701,-500.0,0.00017732,2]
[394472095,1763615444710,-500.0,0.00017732,2]
[394472096,1763615444720,-150.0,0.00017743,2]
[394472097,1763615444730,-150.0,0.00017743,2]
[394472098,1763615444739,-935.0,0.00017745,2]
[394472099,1763615444749,-634.0,0.00017748,2]
[394472100,1763615444758,-500.0,0.00017758,2]
[394472101,1763615444768,-312.00671795,0.00017759,2]
[394472102,1763615444778,-663.0,0.00017759,2]
[394472103,1763615444787,-160.28685172,0.00017759,2]
[394472104,1763615444796,-516.64784238,0.00017759,2]
[394472105,1763615444805,-484.0,0.00017759,2]
[394472106,1763615444814,-512.0,0.00017759,2]
[394472107,1763615444823,-469.0,0.00017759,2]
[394472108,1763615444833,-500.0,0.00017759,2]
[394472109,1763615444842,-500.0,0.00017759,2]
[394472110,1763615444851,-930.23869138,0.00017759,2]
[394472111,1763615444860,-12067.80747519,0.00017759,2]
[394472112,1763615444869,-15597.49607655,0.00017759,2]
[394472113,1763615444878,-150.0,0.0001776,2]
[394472114,1763615444888,-166.6488872,0.00017764,2]
[394472115,1763615444898,-663.0,0.00017786,2]
[394472116,1763615444907,-484.0,0.00017786,2]
[394472117,1763615444916,-512.0,0.00017786,2]
[394472118,1763615444925,-469.0,0.00017786,2]
[394472119,1763615444934,-500.0,0.00017786,2]
[394472120,1763615444943,-500.0,0.00017786,2]
[394472121,1763615444952,-1680.0,0.00017796,2]
[394472122,1763615444961,-1011.0,0.000178,2]
[394472123,1763615444971,-150.0,0.000178,2]
[394472124,1763615444980,-150.0,0.000178,2]
[394472125,1763615444989,-600.0,0.000178,6]
[394472126,1763615444998,-663.0,0.00017814,2]
[394472127,1763615445008,-484.0,0.00017814,2]
[394472128,1763615445017,-512.0,0.00017814,2]
[394472129,1763615445026,-469.0,0.00017814,2]
[394472130,1763615445035,-246.2459642,0.00017814,2]
[394472131,1763615445044,-150.0,0.0001782,2]
[394472132,1763615445054,-1511.50606,0.0001782,2]
[394472133,1763615445063,-1716.21,0.00017827,2]
[394472134,1763615445073,-150.0,0.00017829,2]
[394472135,1763615445082,-663.0,0.00017841,2]
[394472136,1763615445092,-484.0,0.00017841,2]
[394472137,1763615445102,-512.0,0.00017841,2]
[394472138,1763615445111,-469.0,0.00017841,2]
[394472140,1763615445120,-200.0,0.00017855,2]
[394472141,1763615445129,-2000.0,0.00017856,2]
[394472142,1763615445138,-200.0,0.00017856,2]
[394472143,1763615445147,-200.0,0.00017856,2]
[394472144,1763615445157,-278.41536593,0.00017868,2]
[394472145,1763615445166,-1500.0,0.00017868,2]
[394472146,1763615445175,-654.28434194,0.00017868,2]
[394472147,1763615445184,-972.01807675,0.00017868,2]
[394472148,1763615445193,-825.74821255,0.00017868,2]
[394472149,1763615445202,-1500.0,0.00017868,2]
[394472150,1763615445212,-663.0,0.00017869,2]
[394472151,1763615445222,-484.0,0.00017869,2]
[394472152,1763615445231,-512.0,0.00017869,2]
[394472153,1763615445240,-469.0,0.00017869,2]
[394472154,1763615445253,-500.90554177,0.00017873,2]
[394472155,1763615445262,-501.27362339,0.00017873,2]
[394472156,1763615445272,-500.0,0.00017873,2]
[394472157,1763615445285,-181.63155506,0.00017873,2]
[394472158,1763615445294,-161.60192736,0.00017873,2]
[394472159,1763615445302,-501.23436494,0.00017873,2]
[394472160,1763615445312,-500.0,0.00017873,2]
[394472161,1763615445322,-316.17285237,0.00017873,2]
[394472162,1763615445332,-500.0,0.00017873,2]
[394472163,1763615445342,-500.0,0.00017873,2]
[394472164,1763615445353,-160.73608923,0.00017873,2]
[394472165,1763615445363,-2028.20342988,0.00017873,2]
[394472166,1763615445372,-25000.0,0.00017874,3]
[394472167,1763615445381,-2028.20342982,0.00017878,2]
[394472168,1763615445393,-150.0,0.0001788,2]
[394472169,1763615445411,-336.89260273,0.0001788,3]
[394472170,1763615445421,-2028.20342982,0.00017882,2]
[394472171,1763615445431,-25000.0,0.00017882,3]
[394472172,1763615445441,-2028.20342982,0.00017887,2]
[394472173,1763615445450,-500.0,0.0001789,2]
[394472174,1763615445461,-2028.20342982,0.00017891,2]
[394472175,1763615445475,-25000.0,0.00017891,3]
[394472176,1763615445486,-2028.20342982,0.00017896,2]
[394472177,1763615445495,-663.0,0.00017896,2]
[394472178,1763615445504,-484.0,0.00017896,2]
[394472179,1763615445514,-512.0,0.00017896,2]
[394472180,1763615445523,-469.0,0.00017896,2]
[394472181,1763615445532,-2028.20342982,0.000179,2]
[394472182,1763615445541,-166.6488872,0.000179,2]
[394472183,1763615445550,-25000.0,0.000179,3]
[394472184,1763615445559,-1000.0,0.000179,2]
[394472185,1763615445568,-179.96414648,0.000179,3]
[394472186,1763615445578,-600.0,0.000179,6]
[394472187,1763615445587,-930.23869138,0.000179,2]
[394472188,1763615445597,-12067.80747519,0.000179,2]
[394472189,1763615445607,-500.37989577,0.000179,2]
[394472190,1763615445616,-15597.49607655,0.000179,2]
[394472191,1763615445626,-27793.82354216,0.000179,2]
[394472192,1763615445637,-10309.04130668,0.000179,2]
[394472193,1763615445647,-150.0,0.00017914,2]
[394472194,1763615445658,-663.0,0.00017923,2]
[394472195,1763615445671,-484.0,0.00017923,2]
[394472196,1763615445680,-512.0,0.00017923,2]
[394472197,1763615445689,-469.0,0.00017923,2]
[394472198,1763615445698,-1511.50607,0.0001793,2]
[394472199,1763615445708,-162.95436659,0.00017941,2]
[394472200,1763615445717,-650.0,0.00017949,2]
[394472201,1763615445727,-663.0,0.00017951,2]
[394472202,1763615445737,-484.0,0.00017951,2]
[394472203,1763615445745,-512.0,0.00017951,2]
[394472204,1763615445755,-469.0,0.00017951,2]
[394472205,1763615445763,-151.0,0.0001797,2]
[394472207,1763615445772,-725.63,0.00017972,2]
[394472209,1763615445781,-500.0,0.00017972,2]
[394472211,1763615445791,-126350.0,0.00017973,2]
[394472213,1763615445799,-647.0,0.00017973,2]
[394472215,1763615445808,-5954.0,0.00017973,2]
[394472217,1763615445817,-500.0,0.00017973,2]
[394472219,1763615445827,-500.0,0.00017973,2]
[394472221,1763615445837,-501.20084487,0.00017973,2]
[394472223,1763615445846,-500.0,0.00017973,2]
[394472225,1763615445855,-297.20176291,0.00017973,2]
[394472228,1763615445867,-500.62908268,0.00017973,2]
[394472229,1763615445876,-500.0,0.00017973,2]
[394472231,1763615445885,-500.47789219,0.00017973,2]
[394472233,1763615445895,-500.0,0.00017973,2]
[394472235,1763615445904,-500.0,0.00017973,2]
[394472237,1763615445913,-500.0,0.00017973,2]
[394472239,1763615445922,-500.0,0.00017973,2]
[394472241,1763615445931,-500.0,0.00017973,2]
[394472242,1763615445941,-500.0,0.00017973,2]
[394472243,1763615445951,-500.0,0.00017973,2]
[394472244,1763615445960,-503.86976296,0.00017973,2]
[394472245,1763615445969,-500.0,0.00017973,2]
[394472246,1763615445979,-500.0,0.00017973,2]
[394472247,1763615445988,-500.60845142,0.00017973,2]
[394472248,1763615445997,-572.12173873,0.00017973,2]
[394472249,1763615446006,-500.0,0.00017973,2]
[394472250,1763615446015,-500.0,0.00017973,2]
[394472251,1763615446025,-352.02128101,0.00017973,2]
[394472252,1763615446034,-500.96749386,0.00017973,2]
[394472253,1763615446043,-500.0,0.00017973,2]
[394472254,1763615446053,-500.0,0.00017973,2]
[394472256,1763615446066,-500.0,0.00017973,2]
[394472258,1763615446075,-500.0,0.00017973,2]
[394472260,1763615446084,-500.0,0.00017973,2]
[394472262,1763615446094,-500.0,0.00017973,2]
[394472264,1763615446104,-663.0,0.00017978,2]
[394472265,1763615446114,-484.0,0.00017978,2]
[394472266,1763615446123,-512.0,0.00017978,2]
[394472267,1763615446132,-469.0,0.00017978,2]
[394472268,1763615446141,-1820.68505313,0.0001799,2]
[394472269,1763615446151,-1820.68505313,0.0001799,2]
[394472270,1763615446160,-725.63,0.00017997,2]
[394472271,1763615446170,-639.05819945,0.00017997,2]
[394472272,1763615446179,-500.0,0.00017997,2]
[394472273,1763615446189,-500.0,0.00017997,2]
[394472274,1763615446198,-151.0,0.00017997,2]
[394472275,1763615446207,-12348.8929896,0.00017998,2]
[394472276,1763615446217,-282537.6147642,0.00017998,2]
[394472277,1763615446226,-2093.3392746,0.00017998,2]
[394472278,1763615446235,-725.63,0.00017999,2]
[394472279,1763615446244,-725.63,0.00017999,2]
[394472280,1763615446254,-725.63,0.00017999,2]
[394472281,1763615446265,-725.63,0.00017999,2]
[394472282,1763615446277,-725.63,0.00017999,2]
[394472283,1763615446287,-725.63,0.00017999,2]
[394472284,1763615446296,-725.63,0.00017999,2]
[394472285,1763615446305,-725.63,0.00017999,2]
[394472286,1763615446315,-725.63,0.00017999,2]
[394472287,1763615446325,-725.63,0.00017999,2]
[394472288,1763615446334,-725.63,0.00017999,2]
[394472289,1763615446344,-725.63,0.00017999,2]
[394472290,1763615446356,-725.63,0.00017999,2]
[394472291,1763615446366,-725.63,0.00017999,2]
[394472292,1763615446375,-725.63,0.00017999,2]
[394472293,1763615446384,-725.63,0.00017999,2]
[394472294,1763615446393,-725.63,0.00017999,2]
[394472295,1763615446403,-725.70299022,0.00017999,2]
[394472296,1763615446412,-630.01716056,0.00017999,2]
[394472297,1763615446421,-300.0,0.00017999,2]
[394472298,1763615446430,-300.0,0.00017999,2]
[394472299,1763615446439,-150.0,0.00018,2]
[394472300,1763615446449,-150.0,0.00018,2]
[394472301,1763615446459,-150.0,0.00018,2]
[394472302,1763615446468,-150.0,0.00018,2]
[394472303,1763615446477,-150.0,0.00018,2]
[394472305,1763615446487,-150.0,0.00018,2]
[394472307,1763615446496,-150.0,0.00018,2]
[394472309,1763615446505,-150.00000001,0.00018,2]
[394472310,1763615446515,-150.0,0.00018,2]
[394472311,1763615446525,-150.0,0.00018,2]
[394472312,1763615446534,-1738577.6840137,0.00018,2]
[394472320,1763615446746,-2424.24174609,0.00018,2]
[394472321,1763615446760,-835.30146539,0.00018,2]
[394472322,1763615447057,-1640.19802113,0.00017421,2]
[394472323,1763615447070,-1177.12954355,0.00017421,2]
[394472324,1763615447100,-2099.57627329,0.00017421,2]
[394472325,1763615447112,-1226.70749988,0.00017421,2]
[394472326,1763615447188,200.97400885,0.00042059,120]
[394472327,1763615447400,500.0,0.00042059,120]
[394472328,1763615447470,500.0,0.00042059,120]
[394472329,1763615447537,375.04261151,0.00042059,120]
[394472330,1763615447649,-350.38866215,0.00017421,2]
[394472331,1763615447658,-500.0,0.00017814,2]
[394472332,1763615447667,-500.0,0.00017841,2]
[394472333,1763615447677,-500.0,0.00017869,2]
[394472334,1763615447686,-611.64325893,0.00017896,2]
[394472335,1763615447695,-1171238.66759959,0.00018,2]
[394472336,1763615447706,-2712558.04503668,0.00018,2]
[394472337,1763615450428,500.0,0.00042059,120]
[394472338,1763615450660,500.0,0.00042059,120]
[394472339,1763615450837,151.0,0.00042059,120]
[394472340,1763615450915,500.0,0.00042059,120]
[394472341,1763615451155,151.0,0.00042059,120]
[394472342,1763615451220,500.0,0.00042059,120]
[394472343,1763615451385,500.0,0.00042059,120]
[394472344,1763615451615,500.0,0.00042059,120]
[394472345,1763615455708,151.0,0.00042059,120]
[394472346,1763615456065,151.0,0.00042059,120]
[394472347,1763615456416,580.21031162,0.00042059,120]
[394472348,1763615457452,500.0,0.00042059,120]
[394472349,1763615457587,500.0,0.00042059,120]
[394472350,1763615457821,500.0,0.00042059,120]
[394472351,1763615458058,500.0,0.00042059,120]
[394472352,1763615458287,500.0,0.00042059,120]
[394472353,1763615458515,500.0,0.00042059,120]
[394472354,1763615458771,500.0,0.00042059,120]
[394472355,1763615458996,500.0,0.00042059,120]
[394472356,1763615459254,361.71182805,0.00042059,120]
[394472357,1763615459327,500.0,0.00042059,120]
[394472358,1763615460586,200.0,0.00042059,30]
[394472359,1763615461050,500.0,0.00042059,120]
[394472360,1763615461288,500.0,0.00042059,120]
[394472361,1763615461525,500.0,0.00042059,120]
[394472362,1763615461816,500.0,0.00042059,120]
[394472363,1763615462051,500.0,0.00042059,120]
[394472364,1763615462277,500.0,0.00042059,120]
[394472365,1763615462526,443.58363829,0.00042059,120]
[394472366,1763615464856,409.07880809,0.00042059,120]
[394472367,1763615465282,151.0,0.00042059,120]
[394472368,1763615465598,151.0,0.00042059,120]
[394472369,1763615465899,151.0,0.00042059,120]
[394472370,1763615465961,500.0,0.00042059,120]
[394472371,1763615466125,500.0,0.00042059,120]
[394472372,1763615466209,151.0,0.00042059,120]
[394472373,1763615466372,500.0,0.00042059,120]
[394472374,1763615466620,500.0,0.00042059,120]
[394472375,1763615466846,351.85029991,0.00042059,120]
[394472376,1763615470289,500.0,0.00042059,120]
[394472377,1763615470398,500.0,0.00042059,120]
[394472378,1763615470573,500.0,0.00042059,120]
[394472379,1763615470639,400.0,0.00042059,120]
[394472380,1763615470829,500.0,0.00042059,120]
[394472381,1763615471093,500.0,0.00042059,120]
[394472382,1763615471338,500.0,0.00042059,120]
[394472383,1763615471692,428.24194078,0.00042059,120]
[394472384,1763615473891,500.0,0.00042059,120]
[394472385,1763615473949,500.0,0.00042059,120]
[394472386,1763615474129,508.3531169,0.00042059,120]
[394472387,1763615474192,407.33133541,0.00042059,120]
[394472388,1763615475921,1006.14096053,0.00042059,120]
[394472389,1763615477631,500.0,0.00042059,120]
[394472390,1763615477749,500.0,0.00042059,120]
[394472391,1763615477949,500.0,0.00042059,120]
[394472392,1763615478008,500.0,0.00042059,120]
[394472393,1763615478179,500.0,0.00042059,120]
[394472394,1763615478241,404.97423463,0.00042059,120]
[394472395,1763615478432,500.0,0.00042059,120]
[394472396,1763615478669,500.0,0.00042059,120]
[394472397,1763615478902,500.0,0.00042059,120]
[394472398,1763615479256,500.0,0.00042059,120]
[394472399,1763615479375,500.0,0.00042059,120]
[394472400,1763615479577,517.8,0.00013699,2]
[394472401,1763615481019,525.56104424,0.00042059,120]
[394472402,1763615483935,513.06670472,0.00042059,120]
[394472403,1763615484430,500.0,0.00042059,120]
[394472404,1763615484655,500.0,0.00042059,120]
[394472405,1763615484909,500.0,0.00042059,120]
[394472406,1763615485514,500.0,0.00042059,120]
[394472407,1763615485762,500.0,0.00042059,120]
[394472408,1763615486019,205.23590625,0.00042059,120]
[394472409,1763615490247,523.38998887,0.00042059,120]
[394472410,1763615493146,151.0,0.00042059,120]
[394472411,1763615493438,151.0,0.00042059,120]
[394472412,1763615494920,151.0,0.00042059,120]
[394472413,1763615497155,422.82214302,0.00042059,120]
[394472414,1763615526272,500.0,0.00042059,120]
[394472415,1763615533435,208.96763107,0.00042059,120]
[394472416,1763615541382,500.0,0.00042059,120]
[394472417,1763615541610,508.17527132,0.00042059,120]
[394472418,1763615543253,227.45672492,0.00042059,120]
[394472419,1763615571082,500.0,0.00042059,120]
[394472420,1763615590796,500.0,0.00042059,120]
[394472421,1763615590869,500.0,0.00042059,120]
[394472422,1763615591099,500.0,0.00042059,120]
[394472423,1763615591354,500.0,0.00042059,120]
[394472424,1763615591595,573.29599113,0.00042059,120]
[394472425,1763615591874,1000.0,0.00042059,120]
[394472426,1763615592133,1000.0,0.00042059,120]
[394472427,1763615592383,1000.0,0.00042059,120]
[394472428,1763615592668,700.0,0.00042059,120]
[394472429,1763615592935,500.0,0.000299,120]
[394472430,1763615598722,504.074009,0.000299,120]
[394472431,1763615602305,500.0,0.000299,120]
[394472432,1763615665140,500.0,0.00042059,120]
[394472433,1763615665395,500.0,0.00042059,120]
[394472434,1763615665622,500.0,0.00042059,120]
[394472435,1763615665860,500.0,0.00042059,120]
[394472436,1763615666102,500.0,0.00042059,120]
[394472437,1763615666351,500.0,0.00042059,120]
[394472438,1763615666640,500.0,0.00042059,120]
[394472439,1763615666821,500.0,0.00042059,120]
[394472440,1763615666898,500.0,0.00042059,120]
[394472441,1763615667115,617.23551996,0.00042059,120]
[394472442,1763615749714,159.645919,0.0004206,120]
[394472443,1763615762176,200.0,0.0004206,30]
[394472444,1763615763046,482.69848998,0.0004206,120]
[394472445,1763615840538,500.0,0.0004206,120]
[394472446,1763615885129,527.93942061,0.0004206,120]
[394472447,1763615891780,500.0,0.0004206,30]
[394472448,1763615892012,526.90668792,0.0004206,30]
[394472449,1763615909120,166.66,0.00015694,2]
[394472450,1763615909318,166.66,0.00016024,2]
[394472451,1763615977752,506.48072859,0.0004206,120]
[394472452,1763616001040,532.20729019,0.00042028,120]
[394472453,1763616006112,538.29948442,0.00042028,60]
[394472454,1763616031147,-166.66,0.00016354,2]
[394472455,1763616031168,-300.0,0.00016482,2]
[394472456,1763616031189,-500.0,0.00016532,2]
[394472457,1763616031210,-500.0,0.00016532,2]
[394472458,1763616031231,-332.89900919,0.00016532,2]
[394472459,1763616031415,-1200.0,0.0001659,2]
[394472460,1763616031438,-300.0,0.00016591,2]
[394472461,1763616031461,-300.0,0.00016591,2]
[394472462,1763616031485,-300.0,0.00016591,2]
[394472463,1763616031511,-166.66,0.00016685,2]
[394472464,1763616031532,-300.0,0.00016729,2]
[394472465,1763616031553,-300.0,0.00016729,2]
[394472466,1763616031573,-411.7374563,0.00016731,2]
[394472467,1763616031593,-514.28691293,0.00016731,2]
[394472468,1763616031613,-2306.54,0.00016751,2]
[394472469,1763616031633,-2751.0,0.00016762,2]
[394472470,1763616031653,-1200.0,0.00016793,2]
[394472471,1763616031672,-607.18,0.00016794,2]
[394472472,1763616031691,-11159.43855318,0.00016941,2]
[394472473,1763616031712,-166.66,0.00017015,2]
[394472474,1763616031730,-150.0,0.00017178,2]
[394472475,1763616031751,-150.0,0.00017178,2]
[394472476,1763616031770,-288.21,0.00017311,2]
[394472477,1763616031792,-166.66,0.00017346,2]
[394472478,1763616031813,-166.67,0.00017395,2]
[394472479,1763616031835,-2244.0,0.00017469,2]
[394472480,1763616031856,-3051.3980684,0.00017493,2]
[394472481,1763616042585,10544.96788412,0.000328,120]
[394472482,1763616047573,512.69826649,0.00042028,120]
[394472483,1763616060571,200.0,0.00042028,30]
[394472484,1763616096436,336.04536079,0.00042028,120]
[394472485,1763616137828,713.9,8.363e-05,2]
[394472486,1763616137871,713.9,8.803e-05,2]
[394472487,1763616138044,713.9,9.243e-05,2]
[394472488,1763616138244,713.9,9.683e-05,2]
[394472489,1763616138458,713.9,0.00010123,2]
[394472490,1763616138668,713.9,0.00010563,2]
[394472491,1763616138855,713.9,0.00011004,2]
[394472492,1763616139261,713.9,0.00011444,2]
[394472493,1763616139341,413.62451884,0.00042028,120]
[394472494,1763616139484,713.9,0.00011884,2]
[394472495,1763616139689,713.9,0.00012324,2]
[394472496,1763616139884,713.9,0.00012764,2]
[394472497,1763616140289,713.9,0.00013204,2]
[394472498,1763616140507,713.9,0.00013644,2]
[394472499,1763616140707,713.9,0.00014085,2]
[394472500,1763616140911,713.9,0.00014525,2]
[394472501,1763616141124,713.9,0.00014965,2]
[394472502,1763616141325,713.9,0.00015405,2]
[394472503,1763616141707,713.9,0.00015845,2]
[394472504,1763616153753,500.0,0.00042028,120]
[394472505,1763616167934,500.0,0.00042028,120]
[394472506,1763616171599,500.0,0.00042028,120]
[394472507,1763616175369,500.0,0.00042028,120]
[394472508,1763616178233,504.44766879,0.00042028,120]
[394472509,1763616180945,500.0,0.00042028,120]
[394472510,1763616186521,924.05203893,0.00016505,4]
[394472511,1763616186549,1539.80242271,0.00016505,4]
[394472512,1763616201060,1600.0,0.00024981,120]
[394472513,1763616201956,500.0,0.00025199,120]
[394472519,1763616254413,2271.37885971,0.00042028,120]
[394472520,1763616263344,999.0,0.00016571,3]
[394472521,1763616279457,299.99,0.00017132,4]
[394472522,1763616287336,280.55057718,0.00042028,120]
[394472527,1763616370545,160.0,0.000328,120]
[394472528,1763616371429,160.0,0.000328,120]
[394472530,1763616456248,351.63585083,0.00015982,2]
[394472531,1763616478012,161.0,0.000328,120]
[394472532,1763616479008,161.0,0.000328,120]
[394472533,1763616498535,40000.0,0.00042028,120]
[394472534,1763616499747,448.86101475,0.00042028,80]
[394472535,1763616504180,133680.91097366,0.00032,120]
[394472537,1763616511381,150.0,0.00015883,2]
[394472538,1763616511624,150.0,0.00015883,120]
[394472539,1763616515156,1103.0,0.00032,120]
[394472540,1763616516563,3073.27414917,0.00015,2]
[394472541,1763616516587,6767.60476474,0.00015,2]
[394472544,1763616538580,168.23,0.00012707,2]
[394472545,1763616538770,168.23,0.00014825,2]
[394472546,1763616549754,-3083.64,0.00016081,2]
[394472547,1763616550443,237.29999627,0.00032028,120]
[394472548,1763616558729,-3832.73,0.00016081,2]
[394472549,1763616558756,-193.0,0.00016081,2]
[394472550,1763616558786,-250.0,0.00016081,2]
[394472551,1763616558815,-300.0,0.00016081,2]
[394472552,1763616608938,152.76989,0.00042049,120]
[394472553,1763616614802,151.0,0.00042049,120]
[394472554,1763616616674,151.0,0.00042049,120]
[394472555,1763616618034,547.23611,0.00042049,120]
[394472556,1763616618402,547.23611,0.00042049,120]
[394472557,1763616618683,547.23611,0.00042049,120]
[394472558,1763616618971,547.23611,0.00042049,120]
[394472559,1763616619562,547.23611,0.00042049,120]
[394472560,1763616620410,547.23611,0.00042049,120]
[394472561,1763616620719,547.23611,0.00042049,120]
[394472562,1763616620782,151.0,0.00042049,120]
[394472563,1763616621004,547.23611,0.00042049,120]
[394472564,1763616621122,151.0,0.00042049,120]
[394472565,1763616621293,547.23611,0.00042049,120]
[394472566,1763616621430,151.0,0.00042049,120]
[394472567,1763616621837,547.23611,0.00042049,120]
[394472568,1763616621901,151.0,0.00042049,120]
[394472569,1763616622003,547.23611,0.00042049,120]
[394472570,1763616622117,151.0,0.00042049,120]
[394472571,1763616622309,547.23611,0.00042049,120]
[394472572,1763616622447,151.0,0.00042049,120]
[394472573,1763616622629,547.23611,0.00042049,120]
[394472574,1763616623014,547.23611,0.00042049,120]
[394472575,1763616623319,547.23611,0.00042049,120]
[394472576,1763616623606,183.48,0.00031507,120]
[394472577,1763616623670,547.23611,0.00042049,120]
[394472578,1763616623936,547.23611,0.00042049,120]
[394472579,1763616624277,547.23611,0.00042049,120]
[394472580,1763616624575,547.23611,0.00042049,120]
[394472581,1763616624868,547.236109,0.00042049,120]
[394472582,1763616625191,153.750763,0.00042049,120]
[394472583,1763616627040,151.0,0.00042049,120]
[394472584,1763616627331,151.0,0.00042049,120]
[394472585,1763616627598,369.208464,0.00042049,120]
[394472586,1763616627668,151.0,0.00042049,120]
[394472587,1763616627737,151.0,0.00042049,120]
[394472588,1763616627798,369.208464,0.00042049,120]
[394472589,1763616627859,151.0,0.00042049,120]
[394472590,1763616627917,151.0,0.00042049,120]
[394472591,1763616627981,151.0,0.00042049,120]
[394472592,1763616628048,369.208464,0.00042049,120]
[394472593,1763616628114,151.0,0.00042049,120]
[394472594,1763616628175,151.0,0.00042049,120]
[394472595,1763616628244,151.0,0.00042049,120]
[394472596,1763616628312,369.208464,0.00042049,120]
[394472597,1763616628385,228.437706,0.00042049,120]
[394472598,1763616628492,151.0,0.00042049,120]
[394472599,1763616628562,151.0,0.00042049,120]
[394472600,1763616628640,369.208464,0.00042049,120]
[394472601,1763616628878,151.0,0.00042049,120]
[394472602,1763616628996,151.0,0.00042049,120]
[394472603,1763616629074,369.208464,0.00042049,120]
[394472604,1763616629182,210.53232,0.00042049,120]
[394472605,1763616629248,154.658056,0.00042049,120]
[394472606,1763616629356,151.0,0.00042049,120]
[394472607,1763616629422,369.208464,0.00042049,120]
[394472608,1763616629540,154.658056,0.00042049,120]
[394472609,1763616629672,151.0,0.00042049,120]
[394472610,1763616629731,369.208464,0.00042049,120]
[394472611,1763616629861,154.658056,0.00042049,120]
[394472612,1763616629941,151.0,0.00042049,120]
[394472613,1763616630012,369.208464,0.00042049,120]
[394472614,1763616630147,154.658056,0.00042049,120]
[394472615,1763616630223,151.0,0.00042049,120]
[394472616,1763616630346,369.208464,0.00042049,120]
[394472617,1763616630470,154.658056,0.00042049,120]
[394472618,1763616630554,151.0,0.00042049,120]
[394472619,1763616630762,154.658056,0.00042049,120]
[394472620,1763616630837,151.0,0.00042049,120]
[394472621,1763616630896,369.208464,0.00042049,120]
[394472622,1763616631062,154.658056,0.00042049,120]
[394472623,1763616631126,151.0,0.00042049,120]
[394472624,1763616631186,151.0,0.00042049,120]
[394472625,1763616631246,369.208464,0.00042049,120]
[394472626,1763616631382,154.658056,0.00042049,120]
[394472627,1763616631506,151.0,0.00042049,120]
[394472628,1763616631576,369.208464,0.00042049,120]
[394472629,1763616631674,154.658056,0.00042049,120]
[394472630,1763616631773,151.0,0.00042049,120]
[394472631,1763616632032,152.588781,0.00042049,120]
[394472634,1763616632103,369.208464,0.00042049,120]
[394472640,1763616632165,151.0,0.00042049,120]